[Event "*** Titled Tuesday Blitz"]
[Site "Chess.com"]
[Date "2020.04.07"]
[Round "8"]
[White "tandaleo"]
[Black "omidnoroozi21"]
[Result "1-0"]
[WhiteElo "2354"]
[BlackElo "2545"]
[TimeControl "180+1"]
[EndTime "14:31:33 PDT"]
[Termination "tandaleo won by resignation"]

1. d4 {[%clk 0:03:00.9]} 1... d5 {[%clk 0:02:59.6]} 2. c4 {[%clk 0:03:00.6]}
2... e6 {[%clk 0:02:59.8]} 3. Nc3 {[%clk 0:02:59.6]} 3... a6 {[%clk 0:02:59.5]}
4. cxd5 {[%clk 0:02:57.9]} 4... exd5 {[%clk 0:03:00.4]} 5. Bf4 {[%clk
0:02:52.7]} 5... Nf6 {[%clk 0:02:58.8]} 6. Nf3 {[%clk 0:02:52.1]} 6... Bd6
{[%clk 0:02:55.3]} 7. Bg3 {[%clk 0:02:51.7]} 7... O-O {[%clk 0:02:54.3]} 8. e3
{[%clk 0:02:51.4]} 8... c6 {[%clk 0:02:54.3]} 9. Bd3 {[%clk 0:02:48.3]} 9... Re8
{[%clk 0:02:54.5]} 10. O-O {[%clk 0:02:47.9]} 10... Bxg3 {[%clk 0:02:54.4]} 11.
hxg3 {[%clk 0:02:47.6]} 11... Nbd7 {[%clk 0:02:53.1]} 12. b4 {[%clk 0:02:46]}
12... Ne4 {[%clk 0:02:47.4]} 13. Bxe4 {[%clk 0:02:44.4]} 13... dxe4 {[%clk
0:02:47.7]} 14. Nd2 {[%clk 0:02:44.9]} 14... Nf6 {[%clk 0:02:48.6]} 15. Nc4
{[%clk 0:02:40.8]} 15... Nd5 {[%clk 0:02:44.4]} 16. Nxd5 {[%clk 0:02:37.6]}
16... cxd5 {[%clk 0:02:45.3]} 17. Nd2 {[%clk 0:02:35.9]} 17... Qe7 {[%clk
0:02:39.1]} 18. Qb3 {[%clk 0:02:23.7]} 18... Qd6 {[%clk 0:02:37.8]} 19. Rfc1
{[%clk 0:02:23.1]} 19... Bd7 {[%clk 0:02:37.5]} 20. Rc5 {[%clk 0:02:22.8]} 20...
Bc6 {[%clk 0:02:37.5]} 21. Rac1 {[%clk 0:02:21.2]} 21... Rec8 {[%clk 0:02:37.1]}
22. a4 {[%clk 0:02:17.6]} 22... b6 {[%clk 0:02:37.2]} 23. R5c3 {[%clk
0:02:17.1]} 23... Bb7 {[%clk 0:02:37]} 24. a5 {[%clk 0:01:55.7]} 24... h5 {[%clk
0:02:25.3]} 25. axb6 {[%clk 0:01:44.2]} 25... Rxc3 {[%clk 0:02:21.9]} 26. Rxc3
{[%clk 0:01:37.3]} 26... Qxb6 {[%clk 0:02:22]} 27. Rc5 {[%clk 0:01:36.6]} 27...
Bc6 {[%clk 0:02:14.7]} 28. Qc3 {[%clk 0:01:33.3]} 28... Bb7 {[%clk 0:02:12.2]}
29. Nb3 {[%clk 0:01:32.7]} 29... Rd8 {[%clk 0:02:08.8]} 30. Na5 {[%clk
0:01:32.2]} 30... Ba8 {[%clk 0:02:08.8]} 31. Rc8 {[%clk 0:01:06]} 31... Kh7
{[%clk 0:02:08.3]} 32. Qc7 {[%clk 0:00:53.9]} 32... Qxc7 {[%clk 0:02:04.7]} 33.
Rxc7 {[%clk 0:00:54.2]} 33... Rb8 {[%clk 0:02:04.4]} 34. Ra7 {[%clk 0:00:49.3]}
34... f6 {[%clk 0:02:00.6]} 35. Rxa6 {[%clk 0:00:47.8]} 35... Kg6 {[%clk
0:01:59.9]} 36. b5 {[%clk 0:00:42.1]} 1-0

[Event "*** Titled Tuesday Blitz"]
[Site "Chess.com"]
[Date "2020.04.07"]
[Round "8"]
[White "arctic_t00"]
[Black "JozefKneht"]
[Result "1-0"]
[WhiteElo "2429"]
[BlackElo "2564"]
[TimeControl "180+1"]
[EndTime "14:31:36 PDT"]
[Termination "arctic_t00 won by resignation"]

1. d4 {[%clk 0:03:00.9]} 1... d5 {[%clk 0:02:58.7]} 2. c4 {[%clk 0:02:55.1]}
2... e6 {[%clk 0:02:58]} 3. Nf3 {[%clk 0:02:43.2]} 3... Nf6 {[%clk 0:02:57.2]}
4. Nc3 {[%clk 0:02:42.3]} 4... Be7 {[%clk 0:02:56.6]} 5. Bf4 {[%clk 0:02:39.4]}
5... O-O {[%clk 0:02:56]} 6. e3 {[%clk 0:02:39]} 6... c5 {[%clk 0:02:55.7]} 7.
cxd5 {[%clk 0:02:36.7]} 7... exd5 {[%clk 0:02:53.8]} 8. Be2 {[%clk 0:02:29.3]}
8... Nc6 {[%clk 0:02:53.6]} 9. O-O {[%clk 0:02:27.5]} 9... Be6 {[%clk
0:02:54.1]} 10. Rc1 {[%clk 0:02:26.6]} 10... Rc8 {[%clk 0:02:44.3]} 11. h3
{[%clk 0:02:25.9]} 11... a6 {[%clk 0:02:43.6]} 12. dxc5 {[%clk 0:02:19.8]} 12...
Bxc5 {[%clk 0:02:42.7]} 13. Na4 {[%clk 0:02:14.3]} 13... Ba7 {[%clk 0:02:40.1]}
14. Nc5 {[%clk 0:02:13.6]} 14... Qe7 {[%clk 0:02:40.2]} 15. Nxe6 {[%clk
0:02:10.7]} 15... fxe6 {[%clk 0:02:39.7]} 16. Ne5 {[%clk 0:02:04.1]} 16... Nxe5
{[%clk 0:02:04.1]} 17. Bxe5 {[%clk 0:02:03.4]} 17... Ne4 {[%clk 0:02:04.1]} 18.
Rxc8 {[%clk 0:01:58.4]} 18... Rxc8 {[%clk 0:02:02.6]} 19. Bd3 {[%clk 0:01:58.1]}
19... Qg5 {[%clk 0:01:39.4]} 20. Bf4 {[%clk 0:01:52.1]} 20... Qf6 {[%clk
0:01:38.7]} 21. Bxe4 {[%clk 0:01:47.8]} 21... dxe4 {[%clk 0:01:38.1]} 22. Qd7
{[%clk 0:01:48.7]} 22... Rc2 {[%clk 0:01:29.4]} 23. Qxb7 {[%clk 0:01:40.2]}
23... Bc5 {[%clk 0:01:29.1]} 24. Qc8+ {[%clk 0:01:23.8]} 24... Kf7 {[%clk
0:01:27.7]} 25. b4 {[%clk 0:01:19.7]} 25... Bxe3 {[%clk 0:01:21.6]} 26. Qd7+
{[%clk 0:01:14]} 1-0

[Event "*** Titled Tuesday Blitz"]
[Site "Chess.com"]
[Date "2020.04.07"]
[Round "8"]
[White "english_player_89"]
[Black "SanQui14"]
[Result "1-0"]
[WhiteElo "2489"]
[BlackElo "2315"]
[TimeControl "180+1"]
[EndTime "14:31:38 PDT"]
[Termination "english_player_89 won by resignation"]

1. e4 {[%clk 0:03:00.9]} 1... e6 {[%clk 0:02:59.3]} 2. d4 {[%clk 0:03:00.1]}
2... d5 {[%clk 0:03:00.2]} 3. exd5 {[%clk 0:02:58.3]} 3... exd5 {[%clk 0:03:00]}
4. Nf3 {[%clk 0:02:58.8]} 4... Nc6 {[%clk 0:03:00.5]} 5. Nc3 {[%clk 0:02:56.5]}
5... Bg4 {[%clk 0:02:53.4]} 6. Be3 {[%clk 0:02:51.3]} 6... Qd7 {[%clk
0:02:53.5]} 7. h3 {[%clk 0:02:51.2]} 7... Bf5 {[%clk 0:02:52.1]} 8. Bb5 {[%clk
0:02:50.4]} 8... f6 {[%clk 0:02:48.3]} 9. Qe2 {[%clk 0:02:28]} 9... O-O-O {[%clk
0:02:48.1]} 10. a3 {[%clk 0:02:26.9]} 10... g5 {[%clk 0:02:39.6]} 11. b4 {[%clk
0:02:24.7]} 11... h5 {[%clk 0:02:37.1]} 12. Nd2 {[%clk 0:02:07.9]} 12... Bxc2
{[%clk 0:02:33.9]} 13. Rc1 {[%clk 0:02:01.8]} 13... Bf5 {[%clk 0:02:32.4]} 14.
Na4 {[%clk 0:01:58.5]} 14... Nge7 {[%clk 0:02:02.7]} 15. Nc5 {[%clk 0:01:53.1]}
15... Qd6 {[%clk 0:02:00.2]} 16. Ba6 {[%clk 0:01:44.5]} 16... Re8 {[%clk
0:01:38.6]} 17. Nxb7 {[%clk 0:01:38.5]} 17... Kd7 {[%clk 0:01:22.8]} 18. Nxd6
{[%clk 0:01:37.8]} 18... Kxd6 {[%clk 0:01:23.7]} 19. Bb5 {[%clk 0:01:32.2]}
19... Bd7 {[%clk 0:01:22.4]} 20. Qf3 {[%clk 0:01:20.6]} 20... Nf5 {[%clk
0:01:21.6]} 21. Bxc6 {[%clk 0:01:18]} 21... Nxe3 {[%clk 0:01:16.7]} 22. fxe3
{[%clk 0:01:13.7]} 22... Bxc6 {[%clk 0:01:14.2]} 23. Qxf6+ {[%clk 0:01:13.2]}
23... Re6 {[%clk 0:01:10.8]} 24. Rxc6+ {[%clk 0:01:12.5]} 1-0

[Event "*** Titled Tuesday Blitz"]
[Site "Chess.com"]
[Date "2020.04.07"]
[Round "8"]
[White "RojonR"]
[Black "kai_nov"]
[Result "0-1"]
[WhiteElo "2384"]
[BlackElo "2238"]
[TimeControl "180+1"]
[EndTime "14:31:43 PDT"]
[Termination "kai_nov won by resignation"]

1. e4 {[%clk 0:02:57.3]} 1... c5 {[%clk 0:02:59.3]} 2. Nf3 {[%clk 0:02:55.4]}
2... Nc6 {[%clk 0:02:59.2]} 3. d4 {[%clk 0:02:54.8]} 3... cxd4 {[%clk
0:02:56.9]} 4. Nxd4 {[%clk 0:02:55.7]} 4... Nf6 {[%clk 0:02:56.9]} 5. Nc3 {[%clk
0:02:54.9]} 5... e5 {[%clk 0:02:56.7]} 6. Nf5 {[%clk 0:02:54.7]} 6... d5 {[%clk
0:02:56.3]} 7. exd5 {[%clk 0:02:55.3]} 7... Bxf5 {[%clk 0:02:55.4]} 8. dxc6
{[%clk 0:02:55.2]} 8... bxc6 {[%clk 0:02:55.3]} 9. Qf3 {[%clk 0:02:53.1]} 9...
Qd7 {[%clk 0:02:52.8]} 10. Bg5 {[%clk 0:02:25.8]} 10... e4 {[%clk 0:02:48.5]}
11. Qe2 {[%clk 0:02:11.4]} 11... Be7 {[%clk 0:02:47.8]} 12. h3 {[%clk
0:01:44.1]} 12... O-O {[%clk 0:02:43.5]} 13. g4 {[%clk 0:01:43.5]} 13... Bg6
{[%clk 0:02:33.2]} 14. Bg2 {[%clk 0:01:41]} 14... Nd5 {[%clk 0:02:30.1]} 15. Bd2
{[%clk 0:01:22.6]} 15... Rab8 {[%clk 0:02:07]} 16. Rb1 {[%clk 0:01:01.4]} 16...
e3 {[%clk 0:01:57.6]} 17. fxe3 {[%clk 0:00:47.8]} 17... Bh4+ {[%clk 0:01:55.5]}
18. Kf1 {[%clk 0:00:42.7]} 18... Bxc2 {[%clk 0:01:32.3]} 19. Ra1 {[%clk
0:00:26.2]} 19... Nxc3 {[%clk 0:01:29.5]} 0-1

[Event "*** Titled Tuesday Blitz"]
[Site "Chess.com"]
[Date "2020.04.07"]
[Round "8"]
[White "Budisavljevic"]
[Black "Euwe1234"]
[Result "0-1"]
[WhiteElo "2439"]
[BlackElo "2191"]
[TimeControl "180+1"]
[EndTime "14:31:54 PDT"]
[Termination "Euwe1234 won on time"]

1. d4 {[%clk 0:03:00.9]} 1... Nf6 {[%clk 0:02:59.8]} 2. Nf3 {[%clk 0:03:00.3]}
2... d5 {[%clk 0:02:59.2]} 3. Bf4 {[%clk 0:02:56.5]} 3... e6 {[%clk 0:02:59.3]}
4. e3 {[%clk 0:02:56.2]} 4... Bd6 {[%clk 0:02:59.4]} 5. Bg3 {[%clk 0:02:56]}
5... c5 {[%clk 0:02:59.7]} 6. c3 {[%clk 0:02:55.5]} 6... O-O {[%clk 0:02:59.3]}
7. Nbd2 {[%clk 0:02:54.2]} 7... Nc6 {[%clk 0:02:59.5]} 8. Bd3 {[%clk 0:02:52.9]}
8... b6 {[%clk 0:02:59.4]} 9. e4 {[%clk 0:02:51.4]} 9... dxe4 {[%clk 0:02:55.7]}
10. Nxe4 {[%clk 0:02:51.6]} 10... Be7 {[%clk 0:02:43.8]} 11. Qe2 {[%clk
0:02:43]} 11... cxd4 {[%clk 0:02:40]} 12. Nxf6+ {[%clk 0:02:29.9]} 12... Bxf6
{[%clk 0:02:39.6]} 13. Qe4 {[%clk 0:02:23.2]} 13... g6 {[%clk 0:02:39.4]} 14.
Qxc6 {[%clk 0:02:20.7]} 14... dxc3 {[%clk 0:02:38.3]} 15. Rd1 {[%clk 0:01:37.4]}
15... cxb2 {[%clk 0:02:37.4]} 16. O-O {[%clk 0:00:53]} 16... Bd7 {[%clk
0:02:36]} 17. Qe4 {[%clk 0:00:49.3]} 17... Qc8 {[%clk 0:02:26.1]} 18. Be5 {[%clk
0:00:42.1]} 18... Bc6 {[%clk 0:02:24.5]} 19. Qd4 {[%clk 0:00:30.3]} 19... Bxf3
{[%clk 0:02:05.5]} 20. Bxf6 {[%clk 0:00:20.1]} 20... Bxd1 {[%clk 0:02:04.4]} 21.
Rxd1 {[%clk 0:00:11.8]} 21... Qc1 {[%clk 0:02:03.1]} 22. Bb1 {[%clk 0:00:06.4]}
22... Rac8 {[%clk 0:01:59.4]} 23. h4 {[%clk 0:00:04.7]} 23... Qxd1+ {[%clk
0:01:56.6]} 24. Qxd1 {[%clk 0:00:05.6]} 24... Rc1 {[%clk 0:01:56.5]} 25. Qxc1
{[%clk 0:00:01.9]} 25... bxc1=Q+ {[%clk 0:01:56.4]} 0-1

[Event "*** Titled Tuesday Blitz"]
[Site "Chess.com"]
[Date "2020.04.07"]
[Round "8"]
[White "drinbet"]
[Black "LADIESGET2KNOWME"]
[Result "0-1"]
[WhiteElo "2282"]
[BlackElo "2446"]
[TimeControl "180+1"]
[EndTime "14:31:57 PDT"]
[Termination "LADIESGET2KNOWME won by resignation"]

1. e4 {[%clk 0:03:00.9]} 1... e6 {[%clk 0:02:59.9]} 2. d3 {[%clk 0:02:59.8]}
2... d5 {[%clk 0:03:00.2]} 3. Nd2 {[%clk 0:03:00.2]} 3... Nf6 {[%clk 0:03:01.1]}
4. Ngf3 {[%clk 0:03:00.4]} 4... Bc5 {[%clk 0:03:01.6]} 5. d4 {[%clk 0:02:57.9]}
5... Be7 {[%clk 0:03:01.3]} 6. e5 {[%clk 0:02:57.6]} 6... Nfd7 {[%clk
0:03:01.6]} 7. Bd3 {[%clk 0:02:54.8]} 7... c5 {[%clk 0:03:01.9]} 8. c3 {[%clk
0:02:54.8]} 8... Nc6 {[%clk 0:03:02.4]} 9. O-O {[%clk 0:02:54.7]} 9... g5 {[%clk
0:03:02.9]} 10. dxc5 {[%clk 0:02:46]} 10... Bxc5 {[%clk 0:03:03.8]} 11. Nb3
{[%clk 0:02:43.2]} 11... Be7 {[%clk 0:03:04.7]} 12. Re1 {[%clk 0:02:30.5]} 12...
g4 {[%clk 0:03:02.6]} 13. Nfd4 {[%clk 0:02:29.3]} 13... Ndxe5 {[%clk 0:03:02.6]}
14. Bb5 {[%clk 0:02:26.2]} 14... Bd7 {[%clk 0:03:00.6]} 15. Bxc6 {[%clk
0:02:19.3]} 15... Nxc6 {[%clk 0:02:59.6]} 16. Nxc6 {[%clk 0:02:19.4]} 16... bxc6
{[%clk 0:02:53.5]} 17. Qxg4 {[%clk 0:02:19.3]} 17... h5 {[%clk 0:02:51.2]} 18.
Qf3 {[%clk 0:02:11.9]} 18... c5 {[%clk 0:02:33.2]} 19. Bf4 {[%clk 0:02:10.5]}
19... Qb6 {[%clk 0:02:32.3]} 20. Be5 {[%clk 0:02:03]} 20... Rg8 {[%clk
0:02:15.8]} 21. Re2 {[%clk 0:02:02.1]} 21... Bc6 {[%clk 0:02:12.6]} 22. Qxh5
{[%clk 0:01:57.1]} 22... d4 {[%clk 0:02:08.3]} 23. f3 {[%clk 0:01:49.1]} 23...
O-O-O {[%clk 0:02:00.7]} 24. cxd4 {[%clk 0:01:46.7]} 24... cxd4 {[%clk
0:01:57.9]} 25. Kh1 {[%clk 0:01:33.3]} 25... d3 {[%clk 0:01:55.3]} 26. Rd2
{[%clk 0:01:32.7]} 26... Qe3 {[%clk 0:01:53.1]} 27. Bg3 {[%clk 0:01:03.8]} 27...
Bf6 {[%clk 0:01:42.4]} 28. Qc5 {[%clk 0:00:52.1]} 28... Qxc5 {[%clk 0:01:36.4]}
29. Nxc5 {[%clk 0:00:51.8]} 29... Rxg3 {[%clk 0:01:26.8]} 30. hxg3 {[%clk
0:00:46.8]} 30... Rh8+ {[%clk 0:01:25.1]} 0-1

[Event "*** Titled Tuesday Blitz"]
[Site "Chess.com"]
[Date "2020.04.07"]
[Round "8"]
[White "kasparicy"]
[Black "pedromartinez91"]
[Result "1-0"]
[WhiteElo "2340"]
[BlackElo "2481"]
[TimeControl "180+1"]
[EndTime "14:31:58 PDT"]
[Termination "kasparicy won by resignation"]

1. e4 {[%clk 0:02:54.8]} 1... c5 {[%clk 0:02:59.6]} 2. Nf3 {[%clk 0:02:54.4]}
2... Nc6 {[%clk 0:02:59.3]} 3. d4 {[%clk 0:02:51.5]} 3... cxd4 {[%clk
0:03:00.2]} 4. Nxd4 {[%clk 0:02:52.1]} 4... g6 {[%clk 0:03:00.6]} 5. Nc3 {[%clk
0:02:52.2]} 5... Bg7 {[%clk 0:03:00]} 6. Be3 {[%clk 0:02:52.7]} 6... Nf6 {[%clk
0:02:59.7]} 7. Nb3 {[%clk 0:02:52.4]} 7... O-O {[%clk 0:02:59.2]} 8. Be2 {[%clk
0:02:52.9]} 8... d6 {[%clk 0:02:55]} 9. O-O {[%clk 0:02:53.3]} 9... Bd7 {[%clk
0:02:40.6]} 10. f4 {[%clk 0:02:52.1]} 10... Rc8 {[%clk 0:02:36.4]} 11. Bf3
{[%clk 0:02:46.7]} 11... a6 {[%clk 0:02:30.9]} 12. Qe1 {[%clk 0:02:45.1]} 12...
Bg4 {[%clk 0:02:26.9]} 13. Rd1 {[%clk 0:02:40.3]} 13... Bxf3 {[%clk 0:02:26.7]}
14. Rxf3 {[%clk 0:02:39.9]} 14... Ng4 {[%clk 0:02:21.6]} 15. Bc1 {[%clk
0:02:30.8]} 15... Qb6+ {[%clk 0:02:14.2]} 16. Kh1 {[%clk 0:02:28.9]} 16... Nb4
{[%clk 0:02:14.3]} 17. Qh4 {[%clk 0:02:18.4]} 17... h5 {[%clk 0:02:07.6]} 18. h3
{[%clk 0:02:16.2]} 18... Nf6 {[%clk 0:02:01]} 19. e5 {[%clk 0:01:49.4]} 19...
dxe5 {[%clk 0:01:55.5]} 20. fxe5 {[%clk 0:01:49.9]} 20... Nh7 {[%clk 0:01:33.6]}
21. Be3 {[%clk 0:01:43.5]} 21... Qe6 {[%clk 0:01:00.4]} 22. Qxb4 {[%clk
0:01:40.2]} 22... Rc4 {[%clk 0:01:01.3]} 23. Qxb7 {[%clk 0:01:37.5]} 23... g5
{[%clk 0:00:59.4]} 24. Qd5 {[%clk 0:01:21.7]} 24... Qc8 {[%clk 0:00:53.2]} 25.
Bc5 {[%clk 0:01:14.6]} 25... Rh4 {[%clk 0:00:46.7]} 26. Bxe7 {[%clk 0:01:13.7]}
26... g4 {[%clk 0:00:44.4]} 27. Bxh4 {[%clk 0:01:13]} 27... gxf3 {[%clk
0:00:44.4]} 28. Qxf3 {[%clk 0:01:13.9]} 1-0

[Event "*** Titled Tuesday Blitz"]
[Site "Chess.com"]
[Date "2020.04.07"]
[Round "8"]
[White "Pavlov_Sergey"]
[Black "varacalli"]
[Result "1-0"]
[WhiteElo "2563"]
[BlackElo "2404"]
[TimeControl "180+1"]
[EndTime "14:32:04 PDT"]
[Termination "Pavlov_Sergey won by resignation"]

1. c4 {[%clk 0:02:59.7]} 1... Nf6 {[%clk 0:02:59.9]} 2. Nf3 {[%clk 0:02:58.7]}
2... g6 {[%clk 0:03:00]} 3. g3 {[%clk 0:02:58.8]} 3... Bg7 {[%clk 0:03:00.2]} 4.
Bg2 {[%clk 0:02:59.3]} 4... O-O {[%clk 0:03:01.1]} 5. d4 {[%clk 0:02:59.7]} 5...
d6 {[%clk 0:03:02]} 6. O-O {[%clk 0:03:00.1]} 6... Nc6 {[%clk 0:03:02.6]} 7. Nc3
{[%clk 0:03:00]} 7... Bg4 {[%clk 0:03:03.2]} 8. h3 {[%clk 0:02:57.9]} 8... Bxf3
{[%clk 0:03:03.5]} 9. Bxf3 {[%clk 0:02:58.3]} 9... Nd7 {[%clk 0:03:03.8]} 10. e3
{[%clk 0:02:58.7]} 10... e5 {[%clk 0:03:03.7]} 11. dxe5 {[%clk 0:02:58.6]} 11...
Ndxe5 {[%clk 0:03:00.1]} 12. Be2 {[%clk 0:02:58.5]} 12... Na5 {[%clk 0:02:47.7]}
13. Qa4 {[%clk 0:02:40.4]} 13... Nac6 {[%clk 0:02:37.2]} 14. Rb1 {[%clk
0:02:34.8]} 14... Qd7 {[%clk 0:02:33.6]} 15. Kh2 {[%clk 0:02:23.3]} 15... f5
{[%clk 0:02:30.7]} 16. Nd5 {[%clk 0:02:16]} 16... Kh8 {[%clk 0:02:28.9]} 17. b3
{[%clk 0:02:05.7]} 17... Rae8 {[%clk 0:02:27.1]} 18. Bb2 {[%clk 0:02:05.2]}
18... a6 {[%clk 0:02:24.3]} 19. b4 {[%clk 0:02:01.2]} 19... Rc8 {[%clk 0:02:06]}
20. Qb3 {[%clk 0:01:45.3]} 20... Ne7 {[%clk 0:02:00.8]} 21. Rbc1 {[%clk
0:01:42.8]} 21... Rce8 {[%clk 0:01:51.4]} 22. Rfd1 {[%clk 0:01:42]} 22... N5c6
{[%clk 0:01:43.3]} 23. a4 {[%clk 0:01:38.9]} 23... Nc8 {[%clk 0:01:39.7]} 24. b5
{[%clk 0:01:34.6]} 24... axb5 {[%clk 0:01:39.2]} 25. cxb5 {[%clk 0:01:32.6]}
25... h5 {[%clk 0:01:09.8]} 26. bxc6 {[%clk 0:01:26.7]} 26... bxc6 {[%clk
0:01:10.7]} 27. Bxg7+ {[%clk 0:01:26.8]} 27... Kxg7 {[%clk 0:01:07.7]} 28. Qc3+
{[%clk 0:01:25.4]} 28... Kh6 {[%clk 0:01:05.9]} 29. Qxc6 {[%clk 0:01:24.1]}
29... Qe6 {[%clk 0:01:03]} 30. Nxc7 {[%clk 0:01:22.2]} 30... Qa2 {[%clk
0:01:00]} 31. Rc2 {[%clk 0:01:21.1]} 31... Qxc2 {[%clk 0:00:57.5]} 32. Qxc2
{[%clk 0:01:20.4]} 1-0

[Event "*** Titled Tuesday Blitz"]
[Site "Chess.com"]
[Date "2020.04.07"]
[Round "8"]
[White "steepedgames"]
[Black "francyIM"]
[Result "0-1"]
[WhiteElo "2440"]
[BlackElo "2657"]
[TimeControl "180+1"]
[EndTime "14:32:07 PDT"]
[Termination "francyIM won by resignation"]

1. d4 {[%clk 0:03:00.9]} 1... Nf6 {[%clk 0:02:58.8]} 2. Nf3 {[%clk 0:03:01]}
2... e6 {[%clk 0:02:54.4]} 3. Bg5 {[%clk 0:02:57.9]} 3... c5 {[%clk 0:02:52.9]}
4. e3 {[%clk 0:02:57.2]} 4... h6 {[%clk 0:02:52.4]} 5. Bh4 {[%clk 0:02:57]} 5...
Qb6 {[%clk 0:02:52.2]} 6. Qc1 {[%clk 0:02:56.6]} 6... d5 {[%clk 0:02:50.1]} 7.
c3 {[%clk 0:02:55.8]} 7... Nc6 {[%clk 0:02:49.5]} 8. Bd3 {[%clk 0:02:54.3]} 8...
Be7 {[%clk 0:02:47.7]} 9. O-O {[%clk 0:02:53.2]} 9... O-O {[%clk 0:02:47.4]} 10.
Nbd2 {[%clk 0:02:53]} 10... Bd7 {[%clk 0:02:47.3]} 11. dxc5 {[%clk 0:02:46.6]}
11... Qxc5 {[%clk 0:02:46.3]} 12. e4 {[%clk 0:02:44]} 12... dxe4 {[%clk
0:02:39.6]} 13. Nxe4 {[%clk 0:02:41.1]} 13... Nxe4 {[%clk 0:02:39.3]} 14. Bxe7
{[%clk 0:02:40.4]} 14... Nxe7 {[%clk 0:02:35.4]} 15. Bxe4 {[%clk 0:02:40.4]}
15... Bc6 {[%clk 0:02:36]} 16. Bxc6 {[%clk 0:02:28.8]} 16... Nxc6 {[%clk
0:02:36.9]} 17. Qf4 {[%clk 0:02:24.6]} 17... e5 {[%clk 0:02:29.9]} 18. Qf5
{[%clk 0:02:23.3]} 18... Rad8 {[%clk 0:02:21.1]} 19. Rad1 {[%clk 0:02:14.7]}
19... Qe7 {[%clk 0:02:18.7]} 20. Rfe1 {[%clk 0:02:10.7]} 20... Rxd1 {[%clk
0:02:17.2]} 21. Rxd1 {[%clk 0:02:10.6]} 21... Rd8 {[%clk 0:02:17.1]} 22. Re1
{[%clk 0:02:05]} 22... g6 {[%clk 0:02:13.8]} 23. Qe4 {[%clk 0:01:59.7]} 23... f5
{[%clk 0:02:12.7]} 24. Qc4+ {[%clk 0:01:47.2]} 24... Qf7 {[%clk 0:02:11.9]} 25.
Qxf7+ {[%clk 0:01:36.9]} 25... Kxf7 {[%clk 0:02:12.8]} 26. Kf1 {[%clk
0:01:36.6]} 26... e4 {[%clk 0:02:12.7]} 27. Ng1 {[%clk 0:01:36.7]} 27... Ne5
{[%clk 0:02:10.7]} 28. f3 {[%clk 0:01:18.4]} 28... Rd2 {[%clk 0:02:05.7]} 29.
Re2 {[%clk 0:01:17.7]} 29... Rd1+ {[%clk 0:02:02.1]} 30. Re1 {[%clk 0:01:16.1]}
30... Rxe1+ {[%clk 0:02:01.8]} 31. Kxe1 {[%clk 0:01:16.3]} 31... Nd3+ {[%clk
0:02:02.1]} 32. Kd2 {[%clk 0:01:12.4]} 32... exf3 {[%clk 0:02:01.6]} 33. Nxf3
{[%clk 0:01:00.8]} 33... Nxb2 {[%clk 0:01:59.9]} 34. Ne5+ {[%clk 0:00:59.6]}
34... Kf6 {[%clk 0:01:59.1]} 35. Nd7+ {[%clk 0:00:59.6]} 35... Ke7 {[%clk
0:01:59]} 36. Ne5 {[%clk 0:00:58.5]} 36... g5 {[%clk 0:01:58.6]} 37. Kc2 {[%clk
0:00:56]} 37... Ke6 {[%clk 0:01:57.4]} 38. Ng4 {[%clk 0:00:42.6]} 38... Nc4
{[%clk 0:01:52.1]} 39. Nxh6 {[%clk 0:00:42]} 39... Ne3+ {[%clk 0:01:52.3]} 40.
Kd3 {[%clk 0:00:42.5]} 40... Nxg2 {[%clk 0:01:52.6]} 41. c4 {[%clk 0:00:40.4]}
41... Nf4+ {[%clk 0:01:51.8]} 42. Kd4 {[%clk 0:00:40]} 42... Ng6 {[%clk
0:01:51.3]} 43. c5 {[%clk 0:00:37]} 43... Ne7 {[%clk 0:01:51.2]} 44. a4 {[%clk
0:00:34.9]} 44... Kf6 {[%clk 0:01:51.1]} 0-1

[Event "*** Titled Tuesday Blitz"]
[Site "Chess.com"]
[Date "2020.04.07"]
[Round "8"]
[White "cukin84"]
[Black "norwaytoadog"]
[Result "0-1"]
[WhiteElo "2102"]
[BlackElo "2270"]
[TimeControl "180+1"]
[EndTime "14:32:08 PDT"]
[Termination "norwaytoadog won by checkmate"]

1. e4 {[%clk 0:03:00.9]} 1... e5 {[%clk 0:02:59.5]} 2. Nf3 {[%clk 0:02:59.5]}
2... Nc6 {[%clk 0:02:59.9]} 3. c3 {[%clk 0:02:59.1]} 3... Nf6 {[%clk 0:02:58.7]}
4. d4 {[%clk 0:02:58.4]} 4... Nxe4 {[%clk 0:02:58.4]} 5. d5 {[%clk 0:02:57.3]}
5... Bc5 {[%clk 0:02:57.9]} 6. dxc6 {[%clk 0:02:52.6]} 6... Bxf2+ {[%clk
0:02:57.1]} 7. Ke2 {[%clk 0:02:52]} 7... Bb6 {[%clk 0:02:56]} 8. Qd5 {[%clk
0:02:40.5]} 8... Nf2 {[%clk 0:02:54.6]} 9. cxb7 {[%clk 0:02:25.1]} 9... Bxb7
{[%clk 0:02:53.8]} 10. Qxb7 {[%clk 0:02:25]} 10... O-O {[%clk 0:02:29.7]} 11.
Be3 {[%clk 0:02:18.8]} 11... Bxe3 {[%clk 0:02:13.3]} 12. Kxe3 {[%clk 0:02:19.7]}
12... Ng4+ {[%clk 0:02:08.5]} 13. Ke2 {[%clk 0:02:18.9]} 13... Rb8 {[%clk
0:02:05.7]} 14. Qe4 {[%clk 0:02:13.7]} 14... Rxb2+ {[%clk 0:02:04.4]} 15. Nbd2
{[%clk 0:02:12.7]} 15... f5 {[%clk 0:01:54.8]} 16. Qc4+ {[%clk 0:02:08.4]} 16...
d5 {[%clk 0:01:50.6]} 17. Qa4 {[%clk 0:02:01.4]} 17... e4 {[%clk 0:01:38.4]} 18.
Nd4 {[%clk 0:01:38]} 18... e3 {[%clk 0:01:12.1]} 19. Nf3 {[%clk 0:01:32.4]}
19... exd2 {[%clk 0:01:08]} 20. Rd1 {[%clk 0:01:27.3]} 20... Re8+ {[%clk
0:00:47.7]} 21. Ne5 {[%clk 0:01:20.5]} 21... Rxe5+ {[%clk 0:00:44.5]} 22. Kf3
{[%clk 0:01:19.8]} 22... Re3+ {[%clk 0:00:41.2]} 23. Kf4 {[%clk 0:01:19.5]}
23... Qd6+ {[%clk 0:00:36.7]} 24. Kg5 {[%clk 0:01:15.8]} 24... Qg6+ {[%clk
0:00:32.4]} 25. Kh4 {[%clk 0:01:12.8]} 25... Qh6# {[%clk 0:00:31.2]} 0-1